[Event "Titled Tuesday Blitz July 25 Late 2023"]
[White "Dinu, Dumitru-Daniel"]
[Black "demon64fields"]
[WhiteFideId "1208403"]
[WhiteElo "2470"]
[BlackElo "2903"]
[Result "0-1"]
[Round "1"]
[TimeControl "180+2"]
[Date "2023.07.25"]
[WhiteClock "0:00:04"]
[BlackClock "0:01:33"]
[Board "35"]

1. d4 {[%clk 0:03:00]}  g6 {[%clk 0:03:00]} 2. c4 {[%clk 0:03:00]}  Bg7 {[%clk 0:03:00]} 3. Nc3 {[%clk 0:03:01]}  c5 {[%clk 0:03:00]} 4. Nf3 {[%clk 0:02:59]}  cxd4 {[%clk 0:02:59]} 5. Nxd4 {[%clk 0:02:59]}  Nc6 {[%clk 0:03:00]} 6. Nxc6 {[%clk 0:02:54]}  dxc6 {[%clk 0:03:00]} 7. Qxd8+ {[%clk 0:02:52]}  Kxd8 {[%clk 0:03:01]} 8. Bd2 {[%clk 0:02:52]}  Kc7 {[%clk 0:03:01]} 9. O-O-O {[%clk 0:02:50]}  e5 {[%clk 0:03:01]} 10. h4 {[%clk 0:02:46]}  Nh6 {[%clk 0:02:58]} 11. f3 {[%clk 0:02:44]}  Nf5 {[%clk 0:02:53]} 12. g4 {[%clk 0:02:37]}  Ng3 {[%clk 0:02:44]} 13. Rg1 {[%clk 0:02:37]}  Nxf1 {[%clk 0:02:45]} 14. Rdxf1 {[%clk 0:02:38]}  Be6 {[%clk 0:02:41]} 15. b3 {[%clk 0:02:37]}  h5 {[%clk 0:02:39]} 16. g5 {[%clk 0:02:31]}  Rad8 {[%clk 0:02:37]} 17. Ne4 {[%clk 0:02:26]}  b6 {[%clk 0:02:34]} 18. Bc3 {[%clk 0:02:26]}  Bf5 {[%clk 0:02:26]} 19. Rd1 {[%clk 0:02:01]}  Bxe4 {[%clk 0:02:14]} 20. Rxd8 {[%clk 0:01:58]}  Rxd8 {[%clk 0:02:12]} 21. fxe4 {[%clk 0:01:58]}  Kd7 {[%clk 0:02:11]} 22. Kd2 {[%clk 0:01:49]}  Ke6+ {[%clk 0:02:11]} 23. Ke3 {[%clk 0:01:49]}  Bf8 {[%clk 0:02:12]} 24. Kf3 {[%clk 0:01:18]}  Bc5 {[%clk 0:02:07]} 25. Rf1 {[%clk 0:01:16]}  Be7 {[%clk 0:02:02]} 26. Ke3 {[%clk 0:01:07]}  f6 {[%clk 0:02:01]} 27. gxf6 {[%clk 0:01:01]}  Bxf6 {[%clk 0:02:01]} 28. Be1 {[%clk 0:00:58]}  Rd1 {[%clk 0:01:58]} 29. Rg1 {[%clk 0:00:40]}  Bxh4 {[%clk 0:01:50]} 30. Rxg6+ {[%clk 0:00:37]}  Kf7 {[%clk 0:01:49]} 31. Rxc6 {[%clk 0:00:33]}  Bxe1 {[%clk 0:01:40]} 32. Rc7+ {[%clk 0:00:31]}  Kg6 {[%clk 0:01:40]} 33. Rxa7 {[%clk 0:00:31]}  h4 {[%clk 0:01:38]} 34. Ra8 {[%clk 0:00:25]}  h3 {[%clk 0:01:36]} 35. Rh8 {[%clk 0:00:18]}  Rc1 {[%clk 0:01:36]} 36. Kf3 {[%clk 0:00:16]}  Rc3+ {[%clk 0:01:34]} 37. Kg4 {[%clk 0:00:16]}  Rg3+ {[%clk 0:01:35]} 38. Kh4 {[%clk 0:00:16]}  h2 {[%clk 0:01:34]} 39. Rg8+ {[%clk 0:00:04]}  Kf7 {[%clk 0:01:33]} 0-1


[Site "https://www.chess.com"]

[Event "Titled Tuesday Blitz July 25 Late 2023"]
[White "Czarnota, Pawel"]
[Black "ExchangeAB"]
[WhiteFideId "1121219"]
[WhiteElo "2898"]
[BlackElo "2466"]
[Result "1-0"]
[Round "1"]
[TimeControl "180+2"]
[Date "2023.07.25"]
[WhiteClock "0:01:29"]
[BlackClock "0:00:23"]
[Board "36"]

1. e4 {[%clk 0:02:56]}  c6 {[%clk 0:03:00]} 2. d4 {[%clk 0:02:54]}  d5 {[%clk 0:03:00]} 3. e5 {[%clk 0:02:55]}  Bf5 {[%clk 0:03:00]} 4. Nf3 {[%clk 0:02:50]}  e6 {[%clk 0:03:00]} 5. Be2 {[%clk 0:02:51]}  Ne7 {[%clk 0:03:00]} 6. O-O {[%clk 0:02:51]}  h6 {[%clk 0:03:00]} 7. Nbd2 {[%clk 0:02:51]}  Nd7 {[%clk 0:03:00]} 8. Nb3 {[%clk 0:02:52]}  g5 {[%clk 0:03:00]} 9. a4 {[%clk 0:02:51]}  Bg7 {[%clk 0:02:59]} 10. a5 {[%clk 0:02:51]}  Qc7 {[%clk 0:02:58]} 11. Ne1 {[%clk 0:02:50]}  c5 {[%clk 0:02:53]} 12. c3 {[%clk 0:02:45]}  c4 {[%clk 0:02:42]} 13. Nd2 {[%clk 0:02:44]}  O-O-O {[%clk 0:02:39]} 14. b3 {[%clk 0:02:42]}  cxb3 {[%clk 0:02:37]} 15. Qxb3 {[%clk 0:02:42]}  f6 {[%clk 0:02:20]} 16. Ba3 {[%clk 0:02:42]}  Nb8 {[%clk 0:02:01]} 17. Bd6 {[%clk 0:02:18]}  Rxd6 {[%clk 0:01:42]} 18. exd6 {[%clk 0:02:19]}  Qxd6 {[%clk 0:01:42]} 19. Nd3 {[%clk 0:02:19]}  Na6 {[%clk 0:01:36]} 20. Rab1 {[%clk 0:02:13]}  Qc7 {[%clk 0:01:32]} 21. Rb2 {[%clk 0:02:12]}  Nc6 {[%clk 0:01:29]} 22. Rfb1 {[%clk 0:02:05]}  Nxa5 {[%clk 0:01:28]} 23. Qa4 {[%clk 0:02:04]}  b6 {[%clk 0:01:28]} 24. Nb3 {[%clk 0:01:58]}  Qc4 {[%clk 0:01:14]} 25. Nb4 {[%clk 0:01:51]}  Qxe2 {[%clk 0:00:45]} 26. Rxe2 {[%clk 0:01:49]}  Bxb1 {[%clk 0:00:41]} 27. Nxa5 {[%clk 0:01:38]}  Nxb4 {[%clk 0:00:35]} 28. cxb4 {[%clk 0:01:37]}  bxa5 {[%clk 0:00:30]} 29. Qc6+ {[%clk 0:01:38]}  Kd8 {[%clk 0:00:23]} 30. Qd6+ {[%clk 0:01:29]} 1-0


[Site "https://www.chess.com"]

[Event "Titled Tuesday Blitz July 25 Late 2023"]
[White "Karas, Marek"]
[Black "Rodrigue-Lemieux, Shawn"]
[WhiteFideId "14928558"]
[BlackFideId "2620049"]
[WhiteElo "2459"]
[BlackElo "2890"]
[Result "0-1"]
[Round "1"]
[TimeControl "180+2"]
[Date "2023.07.25"]
[WhiteClock "0:00:45"]
[BlackClock "0:01:35"]
[Board "39"]

1. d4 {[%clk 0:02:57]}  g6 {[%clk 0:02:59]} 2. e4 {[%clk 0:02:57]}  Bg7 {[%clk 0:03:00]} 3. Nf3 {[%clk 0:02:58]}  d6 {[%clk 0:03:00]} 4. Bc4 {[%clk 0:02:58]}  e6 {[%clk 0:03:00]} 5. Qe2 {[%clk 0:02:58]}  h5 {[%clk 0:03:00]} 6. Bg5 {[%clk 0:02:58]}  Qd7 {[%clk 0:02:58]} 7. Bb5 {[%clk 0:02:54]}  c6 {[%clk 0:02:57]} 8. Bd3 {[%clk 0:02:52]}  Na6 {[%clk 0:02:55]} 9. c3 {[%clk 0:02:52]}  Nc7 {[%clk 0:02:55]} 10. e5 {[%clk 0:02:49]}  Nh6 {[%clk 0:02:52]} 11. Nbd2 {[%clk 0:02:48]}  d5 {[%clk 0:02:49]} 12. O-O {[%clk 0:02:44]}  b6 {[%clk 0:02:49]} 13. b4 {[%clk 0:02:42]}  a5 {[%clk 0:02:47]} 14. bxa5 {[%clk 0:02:37]}  Rxa5 {[%clk 0:02:42]} 15. Nb3 {[%clk 0:02:37]}  Ra4 {[%clk 0:02:39]} 16. Qc2 {[%clk 0:02:33]}  Ba6 {[%clk 0:02:37]} 17. Nc1 {[%clk 0:02:19]}  Bxd3 {[%clk 0:02:35]} 18. Nxd3 {[%clk 0:02:20]}  Ra8 {[%clk 0:02:34]} 19. Nf4 {[%clk 0:02:14]}  Nf5 {[%clk 0:02:31]} 20. a4 {[%clk 0:02:10]}  O-O {[%clk 0:02:29]} 21. h3 {[%clk 0:02:08]}  c5 {[%clk 0:02:24]} 22. g4 {[%clk 0:02:07]}  hxg4 {[%clk 0:02:25]} 23. hxg4 {[%clk 0:02:07]}  Nh6 {[%clk 0:02:25]} 24. Bxh6 {[%clk 0:02:02]}  Bxh6 {[%clk 0:02:25]} 25. g5 {[%clk 0:02:02]}  Bg7 {[%clk 0:02:25]} 26. Nh2 {[%clk 0:01:59]}  Qe7 {[%clk 0:02:17]} 27. Nh3 {[%clk 0:01:56]}  Rfc8 {[%clk 0:02:13]} 28. Ng4 {[%clk 0:01:51]}  Ne8 {[%clk 0:02:14]} 29. Nf6+ {[%clk 0:01:44]}  Nxf6 {[%clk 0:02:13]} 30. gxf6 {[%clk 0:01:43]}  Bxf6 {[%clk 0:02:14]} 31. exf6 {[%clk 0:01:44]}  Qxf6 {[%clk 0:02:14]} 32. Qd3 {[%clk 0:01:43]}  Qh4 {[%clk 0:02:13]} 33. Qg3 {[%clk 0:01:41]}  Qxg3+ {[%clk 0:02:09]} 34. fxg3 {[%clk 0:01:41]}  cxd4 {[%clk 0:02:10]} 35. cxd4 {[%clk 0:01:42]}  Rc4 {[%clk 0:02:11]} 36. Rfb1 {[%clk 0:01:36]}  Rxd4 {[%clk 0:02:10]} 37. Rxb6 {[%clk 0:01:36]}  Raxa4 {[%clk 0:02:10]} 38. Rf1 {[%clk 0:01:34]}  Ra3 {[%clk 0:01:52]} 39. Kg2 {[%clk 0:01:32]}  Rdd3 {[%clk 0:01:50]} 40. Ng1 {[%clk 0:01:03]}  Rxg3+ {[%clk 0:01:50]} 41. Kf2 {[%clk 0:01:02]}  Rg5 {[%clk 0:01:46]} 42. Ke2 {[%clk 0:00:54]}  Rg2+ {[%clk 0:01:41]} 43. Kd1 {[%clk 0:00:44]}  Ra1+ {[%clk 0:01:34]} 44. Rb1 {[%clk 0:00:45]}  Rxb1# {[%clk 0:01:35]} 0-1


[Site "https://www.chess.com"]

[Event "Titled Tuesday Blitz July 25 Late 2023"]
[White "Lenderman, Aleksandr"]
[Black "Perske, Thore"]
[WhiteFideId "2021285"]
[BlackFideId "12902195"]
[WhiteElo "2882"]
[BlackElo "2458"]
[Result "1-0"]
[Round "1"]
[TimeControl "180+2"]
[Date "2023.07.25"]
[WhiteClock "0:01:08"]
[BlackClock "0:00:07"]
[Board "40"]

1. b3 {[%clk 0:02:59]}  d5 {[%clk 0:02:59]} 2. Bb2 {[%clk 0:02:57]}  Bf5 {[%clk 0:02:59]} 3. Nf3 {[%clk 0:02:53]}  e6 {[%clk 0:02:57]} 4. d3 {[%clk 0:02:50]}  Nf6 {[%clk 0:02:55]} 5. Nbd2 {[%clk 0:02:50]}  Be7 {[%clk 0:02:48]} 6. g3 {[%clk 0:02:48]}  h6 {[%clk 0:02:45]} 7. Bg2 {[%clk 0:02:48]}  O-O {[%clk 0:02:45]} 8. O-O {[%clk 0:02:48]}  c6 {[%clk 0:02:45]} 9. Qe1 {[%clk 0:02:45]}  Bg6 {[%clk 0:02:37]} 10. Ne5 {[%clk 0:02:42]}  Bh7 {[%clk 0:02:35]} 11. e4 {[%clk 0:02:42]}  Nbd7 {[%clk 0:02:28]} 12. Nxd7 {[%clk 0:02:42]}  Nxd7 {[%clk 0:02:21]} 13. Kh1 {[%clk 0:02:37]}  a5 {[%clk 0:02:12]} 14. a3 {[%clk 0:02:37]}  b5 {[%clk 0:02:05]} 15. Qe2 {[%clk 0:02:37]}  Bf6 {[%clk 0:02:02]} 16. Bxf6 {[%clk 0:02:34]}  Qxf6 {[%clk 0:01:58]} 17. f4 {[%clk 0:02:33]}  Qc3 {[%clk 0:01:53]} 18. Ra2 {[%clk 0:02:32]}  Ra7 {[%clk 0:01:27]} 19. Qf2 {[%clk 0:02:31]}  Qc5 {[%clk 0:01:18]} 20. Qxc5 {[%clk 0:02:17]}  Nxc5 {[%clk 0:01:18]} 21. f5 {[%clk 0:02:17]}  exf5 {[%clk 0:01:10]} 22. exd5 {[%clk 0:02:17]}  cxd5 {[%clk 0:01:03]} 23. Bxd5 {[%clk 0:02:18]}  Re7 {[%clk 0:01:00]} 24. b4 {[%clk 0:02:08]}  axb4 {[%clk 0:00:51]} 25. axb4 {[%clk 0:02:09]}  Na4 {[%clk 0:00:52]} 26. Bb3 {[%clk 0:02:05]}  Re2 {[%clk 0:00:41]} 27. Nf3 {[%clk 0:02:01]}  Rd8 {[%clk 0:00:22]} 28. Raa1 {[%clk 0:01:50]}  g5 {[%clk 0:00:21]} 29. Rae1 {[%clk 0:01:50]}  Rde8 {[%clk 0:00:20]} 30. Rxe2 {[%clk 0:01:50]}  Rxe2 {[%clk 0:00:21]} 31. Nd4 {[%clk 0:01:51]}  Rd2 {[%clk 0:00:18]} 32. Nxf5 {[%clk 0:01:47]}  Bxf5 {[%clk 0:00:16]} 33. Rxf5 {[%clk 0:01:47]}  Nc3 {[%clk 0:00:16]} 34. Rxf7 {[%clk 0:01:46]}  Kh8 {[%clk 0:00:17]} 35. Rc7 {[%clk 0:01:37]}  Ne2 {[%clk 0:00:17]} 36. g4 {[%clk 0:01:14]}  Nd4 {[%clk 0:00:17]} 37. Rf7 {[%clk 0:01:12]}  Nxb3 {[%clk 0:00:15]} 38. cxb3 {[%clk 0:01:11]}  Rxd3 {[%clk 0:00:14]} 39. Rf5 {[%clk 0:01:11]}  Rxb3 {[%clk 0:00:13]} 40. Rxb5 {[%clk 0:01:12]}  Rb2 {[%clk 0:00:13]} 41. Rb7 {[%clk 0:01:11]}  Rb3 {[%clk 0:00:12]} 42. Kg2 {[%clk 0:01:11]}  Rc3 {[%clk 0:00:12]} 43. b5 {[%clk 0:01:11]}  Rb3 {[%clk 0:00:12]} 44. b6 {[%clk 0:01:10]}  Kg8 {[%clk 0:00:11]} 45. Kf2 {[%clk 0:01:09]}  Rc3 {[%clk 0:00:10]} 46. Rc7 {[%clk 0:01:08]}  Rb3 {[%clk 0:00:07]} 47. b7 {[%clk 0:01:08]} 1-0


[Site "https://www.chess.com"]

[Event "Titled Tuesday Blitz July 25 Late 2023"]
[White "Castella Garcia, Fausto"]
[Black "Fressinet, Laurent"]
[WhiteFideId "3501922"]
[BlackFideId "608742"]
[WhiteElo "2452"]
[BlackElo "2881"]
[Result "0-1"]
[Round "1"]
[TimeControl "180+2"]
[Date "2023.07.25"]
[WhiteClock "0:00:56"]
[BlackClock "0:01:24"]
[Board "41"]

1. e4 {[%clk 0:02:57]}  c5 {[%clk 0:02:55]} 2. Nf3 {[%clk 0:02:56]}  d6 {[%clk 0:02:55]} 3. d4 {[%clk 0:02:56]}  cxd4 {[%clk 0:02:56]} 4. Nxd4 {[%clk 0:02:56]}  Nf6 {[%clk 0:02:56]} 5. Nc3 {[%clk 0:02:57]}  Nc6 {[%clk 0:02:56]} 6. Bg5 {[%clk 0:02:56]}  e6 {[%clk 0:02:54]} 7. Qd2 {[%clk 0:02:57]}  a6 {[%clk 0:02:53]} 8. O-O-O {[%clk 0:02:57]}  Bd7 {[%clk 0:02:52]} 9. f4 {[%clk 0:02:57]}  Be7 {[%clk 0:02:45]} 10. Be2 {[%clk 0:02:38]}  Rc8 {[%clk 0:02:39]} 11. Kb1 {[%clk 0:02:38]}  b5 {[%clk 0:02:36]} 12. Bf3 {[%clk 0:02:36]}  b4 {[%clk 0:02:30]} 13. Nce2 {[%clk 0:02:36]}  Qb6 {[%clk 0:02:24]} 14. e5 {[%clk 0:02:25]}  dxe5 {[%clk 0:02:20]} 15. Nxc6 {[%clk 0:02:21]}  Bxc6 {[%clk 0:02:19]} 16. fxe5 {[%clk 0:02:17]}  Nd5 {[%clk 0:02:12]} 17. Nd4 {[%clk 0:02:04]}  Nc3+ {[%clk 0:02:05]} 18. Ka1 {[%clk 0:01:51]}  Bxg5 {[%clk 0:01:40]} 19. Bxc6+ {[%clk 0:01:26]}  Rxc6 {[%clk 0:01:35]} 20. Qxg5 {[%clk 0:01:26]}  Nxd1 {[%clk 0:01:34]} 21. Nxc6 {[%clk 0:01:18]}  Qxc6 {[%clk 0:01:29]} 22. Qxg7 {[%clk 0:01:13]}  Qxc2 {[%clk 0:01:24]} 23. Qxh8+ {[%clk 0:00:56]}  Kd7 {[%clk 0:01:24]} 0-1


[Site "https://www.chess.com"]

[Event "Titled Tuesday Blitz July 25 Late 2023"]
[White "Zhigalko, Sergei"]
[Black "Bobkov, Vadim"]
[WhiteFideId "13502956"]
[BlackFideId "34110876"]
[WhiteElo "2874"]
[BlackElo "2450"]
[Result "1-0"]
[Round "1"]
[TimeControl "180+2"]
[Date "2023.07.25"]
[WhiteClock "0:00:23"]
[BlackClock "0:00:08"]
[Board "44"]

1. e4 {[%clk 0:03:00]}  c5 {[%clk 0:02:55]} 2. Nf3 {[%clk 0:03:00]}  g6 {[%clk 0:02:54]} 3. c3 {[%clk 0:03:00]}  Bg7 {[%clk 0:02:54]} 4. d4 {[%clk 0:03:00]}  cxd4 {[%clk 0:02:54]} 5. cxd4 {[%clk 0:03:01]}  d5 {[%clk 0:02:54]} 6. e5 {[%clk 0:03:02]}  a6 {[%clk 0:02:54]} 7. h3 {[%clk 0:03:00]}  Nc6 {[%clk 0:02:52]} 8. Nc3 {[%clk 0:03:00]}  f6 {[%clk 0:02:53]} 9. Bf4 {[%clk 0:02:34]}  fxe5 {[%clk 0:02:44]} 10. dxe5 {[%clk 0:02:29]}  e6 {[%clk 0:02:36]} 11. Bd3 {[%clk 0:02:28]}  Nh6 {[%clk 0:02:32]} 12. O-O {[%clk 0:02:19]}  O-O {[%clk 0:02:32]} 13. Qd2 {[%clk 0:02:08]}  Nf7 {[%clk 0:01:52]} 14. Rfe1 {[%clk 0:02:07]}  Qc7 {[%clk 0:01:45]} 15. Rac1 {[%clk 0:02:02]}  Qb8 {[%clk 0:01:40]} 16. Na4 {[%clk 0:01:45]}  Nfxe5 {[%clk 0:01:33]} 17. Nxe5 {[%clk 0:01:43]}  Nxe5 {[%clk 0:01:19]} 18. Nb6 {[%clk 0:01:18]}  Qd6 {[%clk 0:00:31]} 19. Nxa8 {[%clk 0:01:03]}  Bd7 {[%clk 0:00:24]} 20. Bg3 {[%clk 0:00:24]}  Rxa8 {[%clk 0:00:20]} 21. Qe2 {[%clk 0:00:24]}  Nxd3 {[%clk 0:00:11]} 22. Bxd6 {[%clk 0:00:23]}  Nxc1 {[%clk 0:00:12]} 23. Rxc1 {[%clk 0:00:24]}  Bb5 {[%clk 0:00:08]} 24. Qxe6+ {[%clk 0:00:23]} 1-0


[Site "https://www.chess.com"]

[Event "Titled Tuesday Blitz July 25 Late 2023"]
[White "Dardha, Daniel"]
[Black "Kirillov, Dmitry"]
[WhiteFideId "240990"]
[BlackFideId "34180572"]
[WhiteElo "2869"]
[BlackElo "2449"]
[Result "1-0"]
[Round "1"]
[TimeControl "180+2"]
[Date "2023.07.25"]
[WhiteClock "0:00:39"]
[BlackClock "0:00:00"]
[Board "46"]

1. d4 {[%clk 0:02:59]}  Nf6 {[%clk 0:02:54]} 2. Bg5 {[%clk 0:02:58]}  c5 {[%clk 0:02:51]} 3. dxc5 {[%clk 0:02:57]}  Qa5+ {[%clk 0:02:45]} 4. Nd2 {[%clk 0:02:52]}  Qxc5 {[%clk 0:02:42]} 5. Bxf6 {[%clk 0:02:52]}  gxf6 {[%clk 0:02:43]} 6. Ngf3 {[%clk 0:02:52]}  f5 {[%clk 0:02:35]} 7. e4 {[%clk 0:02:51]}  fxe4 {[%clk 0:02:30]} 8. Nxe4 {[%clk 0:02:52]}  Qb4+ {[%clk 0:02:29]} 9. Nfd2 {[%clk 0:02:46]}  d5 {[%clk 0:02:25]} 10. c3 {[%clk 0:02:45]}  Qxb2 {[%clk 0:02:11]} 11. Ng5 {[%clk 0:02:40]}  Qxc3 {[%clk 0:02:04]} 12. Rc1 {[%clk 0:02:35]}  Qe5+ {[%clk 0:02:00]} 13. Be2 {[%clk 0:02:35]}  Nc6 {[%clk 0:01:55]} 14. Ndf3 {[%clk 0:02:32]}  Qd6 {[%clk 0:01:53]} 15. O-O {[%clk 0:02:26]}  h6 {[%clk 0:01:42]} 16. Nxf7 {[%clk 0:02:22]}  Kxf7 {[%clk 0:01:38]} 17. Nh4 {[%clk 0:02:22]}  Bg7 {[%clk 0:01:14]} 18. Bh5+ {[%clk 0:02:17]}  Kg8 {[%clk 0:01:14]} 19. Re1 {[%clk 0:02:15]}  Bd7 {[%clk 0:01:06]} 20. Ng6 {[%clk 0:02:13]}  Rh7 {[%clk 0:01:04]} 21. Qf3 {[%clk 0:02:05]}  Be8 {[%clk 0:01:00]} 22. Qg4 {[%clk 0:01:44]}  Bxg6 {[%clk 0:00:58]} 23. Bxg6 {[%clk 0:01:41]}  e5 {[%clk 0:00:34]} 24. Qf5 {[%clk 0:01:33]}  Rf8 {[%clk 0:00:23]} 25. Bxh7+ {[%clk 0:01:30]}  Kh8 {[%clk 0:00:23]} 26. Qd3 {[%clk 0:01:29]}  Qf6 {[%clk 0:00:19]} 27. Re2 {[%clk 0:01:25]}  e4 {[%clk 0:00:19]} 28. Qxd5 {[%clk 0:01:25]}  Kxh7 {[%clk 0:00:19]} 29. Qxe4+ {[%clk 0:01:25]}  Qf5 {[%clk 0:00:19]} 30. Rb1 {[%clk 0:01:21]}  Nd4 {[%clk 0:00:15]} 31. Qxf5+ {[%clk 0:01:18]}  Rxf5 {[%clk 0:00:16]} 32. Re7 {[%clk 0:01:17]}  b5 {[%clk 0:00:16]} 33. Rxa7 {[%clk 0:01:16]}  Kg6 {[%clk 0:00:17]} 34. Ra6+ {[%clk 0:01:15]}  Kg5 {[%clk 0:00:17]} 35. g3 {[%clk 0:01:12]}  Bf6 {[%clk 0:00:15]} 36. Rd1 {[%clk 0:01:10]}  Ne2+ {[%clk 0:00:11]} 37. Kg2 {[%clk 0:01:10]}  Nc3 {[%clk 0:00:12]} 38. Rdd6 {[%clk 0:01:05]}  Ne4 {[%clk 0:00:09]} 39. f4+ {[%clk 0:01:00]}  Kg4 {[%clk 0:00:03]} 40. Rdc6 {[%clk 0:01:00]}  Rd5 {[%clk 0:00:03]} 41. Rc2 {[%clk 0:00:47]}  Rd1 {[%clk 0:00:03]} 42. Ra5 {[%clk 0:00:44]}  Bd4 {[%clk 0:00:03]} 43. h3+ {[%clk 0:00:42]}  Kf5 {[%clk 0:00:03]} 44. Rxb5+ {[%clk 0:00:41]}  Ke6 {[%clk 0:00:02]} 45. Kf3 {[%clk 0:00:41]}  Nc3 {[%clk 0:00:00]} 46. Rb3 {[%clk 0:00:39]} 1-0


[Site "https://www.chess.com"]

[Event "Titled Tuesday Blitz July 25 Late 2023"]
[White "Hamedi Nia, Vesal"]
[Black "Bartel, Mateusz"]
[WhiteFideId "12542253"]
[BlackFideId "1112635"]
[WhiteElo "2443"]
[BlackElo "2850"]
[Result "0-1"]
[Round "1"]
[TimeControl "180+2"]
[Date "2023.07.25"]
[WhiteClock "0:00:00"]
[BlackClock "0:00:17"]
[Board "49"]

1. d4 {[%clk 0:02:58]}  Nf6 {[%clk 0:02:58]} 2. c4 {[%clk 0:02:57]}  e6 {[%clk 0:02:57]} 3. Nf3 {[%clk 0:02:57]}  Bb4+ {[%clk 0:02:50]} 4. Nbd2 {[%clk 0:02:56]}  O-O {[%clk 0:02:48]} 5. a3 {[%clk 0:02:57]}  Be7 {[%clk 0:02:48]} 6. e4 {[%clk 0:02:57]}  d6 {[%clk 0:02:48]} 7. Bd3 {[%clk 0:02:56]}  e5 {[%clk 0:02:42]} 8. O-O {[%clk 0:02:53]}  exd4 {[%clk 0:02:28]} 9. Nxd4 {[%clk 0:02:50]}  Nc6 {[%clk 0:02:29]} 10. Nf5 {[%clk 0:02:49]}  Bxf5 {[%clk 0:02:24]} 11. exf5 {[%clk 0:02:50]}  d5 {[%clk 0:02:15]} 12. cxd5 {[%clk 0:02:45]}  Qxd5 {[%clk 0:02:14]} 13. Bc2 {[%clk 0:02:41]}  Nd4 {[%clk 0:02:08]} 14. Re1 {[%clk 0:02:30]}  Nxc2 {[%clk 0:01:33]} 15. Qxc2 {[%clk 0:02:29]}  Bd6 {[%clk 0:01:33]} 16. Nc4 {[%clk 0:02:21]}  Rfe8 {[%clk 0:01:30]} 17. Bg5 {[%clk 0:02:15]}  Ne4 {[%clk 0:01:17]} 18. Nxd6 {[%clk 0:02:07]}  cxd6 {[%clk 0:01:14]} 19. Bh4 {[%clk 0:01:44]}  Qxf5 {[%clk 0:01:12]} 20. f3 {[%clk 0:01:43]}  Qc5+ {[%clk 0:00:54]} 21. Qxc5 {[%clk 0:01:42]}  Nxc5 {[%clk 0:00:55]} 22. Rad1 {[%clk 0:01:37]}  Rxe1+ {[%clk 0:00:49]} 23. Bxe1 {[%clk 0:01:35]}  Rd8 {[%clk 0:00:49]} 24. Bg3 {[%clk 0:01:25]}  d5 {[%clk 0:00:47]} 25. Bf2 {[%clk 0:01:18]}  b6 {[%clk 0:00:42]} 26. b4 {[%clk 0:01:13]}  Ne6 {[%clk 0:00:42]} 27. g3 {[%clk 0:01:10]}  Kf8 {[%clk 0:00:40]} 28. f4 {[%clk 0:01:10]}  g6 {[%clk 0:00:40]} 29. Kg2 {[%clk 0:01:08]}  Ke7 {[%clk 0:00:40]} 30. Kf3 {[%clk 0:01:07]}  h5 {[%clk 0:00:39]} 31. Ke2 {[%clk 0:01:03]}  Kd6 {[%clk 0:00:38]} 32. Kd3 {[%clk 0:00:37]}  Rc8 {[%clk 0:00:38]} 33. Re1 {[%clk 0:00:35]}  Rc4 {[%clk 0:00:36]} 34. Be3 {[%clk 0:00:33]}  Rc8 {[%clk 0:00:21]} 35. Bd2 {[%clk 0:00:28]}  b5 {[%clk 0:00:18]} 36. Bc3 {[%clk 0:00:27]}  a6 {[%clk 0:00:18]} 37. Be5+ {[%clk 0:00:27]}  Kd7 {[%clk 0:00:19]} 38. Bf6 {[%clk 0:00:27]}  Rc4 {[%clk 0:00:18]} 39. Re5 {[%clk 0:00:24]}  Kd6 {[%clk 0:00:18]} 40. Re2 {[%clk 0:00:21]}  Kc6 {[%clk 0:00:18]} 41. Be5 {[%clk 0:00:14]}  a5 {[%clk 0:00:18]} 42. Rb2 {[%clk 0:00:10]}  a4 {[%clk 0:00:18]} 43. Re2 {[%clk 0:00:10]}  Kd7 {[%clk 0:00:18]} 44. Bf6 {[%clk 0:00:10]}  Kd6 {[%clk 0:00:17]} 45. Be5+ {[%clk 0:00:00]}  Kc6 {[%clk 0:00:17]} 0-1


[Site "https://www.chess.com"]

[Event "Titled Tuesday Blitz July 25 Late 2023"]
[White "Miladinovic, Igor"]
[Black "WindWhistler11"]
[WhiteFideId "4203380"]
[WhiteElo "2843"]
[BlackElo "2442"]
[Result "1/2-1/2"]
[Round "1"]
[TimeControl "180+2"]
[Date "2023.07.25"]
[WhiteClock "0:00:20"]
[BlackClock "0:00:18"]
[Board "50"]

1. d4 {[%clk 0:03:00]}  Nf6 {[%clk 0:02:57]} 2. Bg5 {[%clk 0:03:00]}  Ne4 {[%clk 0:02:57]} 3. h4 {[%clk 0:03:00]}  c5 {[%clk 0:02:56]} 4. dxc5 {[%clk 0:03:01]}  Qa5+ {[%clk 0:02:55]} 5. Nd2 {[%clk 0:03:01]}  Nxg5 {[%clk 0:02:55]} 6. hxg5 {[%clk 0:03:02]}  Qxc5 {[%clk 0:02:55]} 7. g6 {[%clk 0:03:01]}  fxg6 {[%clk 0:02:54]} 8. e3 {[%clk 0:03:00]}  d6 {[%clk 0:02:49]} 9. Bd3 {[%clk 0:02:54]}  Bf5 {[%clk 0:02:49]} 10. Nb3 {[%clk 0:02:53]}  Qe5 {[%clk 0:02:44]} 11. Nf3 {[%clk 0:02:53]}  Qxb2 {[%clk 0:02:43]} 12. Bxf5 {[%clk 0:02:31]}  gxf5 {[%clk 0:02:41]} 13. Qd5 {[%clk 0:02:29]}  Qc3+ {[%clk 0:02:31]} 14. Kf1 {[%clk 0:02:28]}  Nc6 {[%clk 0:02:27]} 15. Ng5 {[%clk 0:02:23]}  Nd8 {[%clk 0:02:06]} 16. Qxf5 {[%clk 0:02:14]}  g6 {[%clk 0:01:56]} 17. Qf3 {[%clk 0:02:04]}  Qf6 {[%clk 0:01:39]} 18. Qg3 {[%clk 0:01:49]}  Bg7 {[%clk 0:01:32]} 19. Rxh7 {[%clk 0:01:38]}  Rxh7 {[%clk 0:01:18]} 20. Nxh7 {[%clk 0:01:39]}  Qf5 {[%clk 0:01:18]} 21. Re1 {[%clk 0:01:37]}  Ne6 {[%clk 0:01:17]} 22. e4 {[%clk 0:01:34]}  Qh5 {[%clk 0:01:17]} 23. Qh3 {[%clk 0:01:26]}  Qxh3 {[%clk 0:01:11]} 24. gxh3 {[%clk 0:01:27]}  Kf7 {[%clk 0:01:10]} 25. h4 {[%clk 0:01:26]}  Rh8 {[%clk 0:01:10]} 26. Ng5+ {[%clk 0:01:26]}  Nxg5 {[%clk 0:01:10]} 27. hxg5 {[%clk 0:01:27]}  Rh5 {[%clk 0:00:58]} 28. Ke2 {[%clk 0:01:21]}  Rxg5 {[%clk 0:00:58]} 29. a4 {[%clk 0:01:20]}  Rg4 {[%clk 0:00:56]} 30. Kf3 {[%clk 0:01:16]}  Rh4 {[%clk 0:00:57]} 31. Kg3 {[%clk 0:01:11]}  g5 {[%clk 0:00:56]} 32. Rd1 {[%clk 0:01:07]}  Be5+ {[%clk 0:00:56]} 33. Kf3 {[%clk 0:01:07]}  Rh3+ {[%clk 0:00:56]} 34. Ke2 {[%clk 0:01:05]}  Rc3 {[%clk 0:00:57]} 35. Kd2 {[%clk 0:01:01]}  Rc4 {[%clk 0:00:57]} 36. a5 {[%clk 0:00:57]}  Rxe4 {[%clk 0:00:56]} 37. f3 {[%clk 0:00:58]}  Rc4 {[%clk 0:00:51]} 38. Rh1 {[%clk 0:00:57]}  Kg6 {[%clk 0:00:48]} 39. Rf1 {[%clk 0:00:48]}  Rc3 {[%clk 0:00:47]} 40. Nc1 {[%clk 0:00:36]}  Rc5 {[%clk 0:00:40]} 41. Nb3 {[%clk 0:00:35]}  Bf4+ {[%clk 0:00:38]} 42. Kd3 {[%clk 0:00:35]}  Rd5+ {[%clk 0:00:31]} 43. Kc4 {[%clk 0:00:35]}  Re5 {[%clk 0:00:31]} 44. Rb1 {[%clk 0:00:35]}  Re3 {[%clk 0:00:31]} 45. Nd4 {[%clk 0:00:33]}  Be5 {[%clk 0:00:30]} 46. Rxb7 {[%clk 0:00:32]}  Bxd4 {[%clk 0:00:29]} 47. Kxd4 {[%clk 0:00:33]}  Rxf3 {[%clk 0:00:26]} 48. Rxe7 {[%clk 0:00:33]}  g4 {[%clk 0:00:26]} 49. Rxa7 {[%clk 0:00:27]}  g3 {[%clk 0:00:25]} 50. Ra8 {[%clk 0:00:28]}  Kg7 {[%clk 0:00:22]} 51. Ra7+ {[%clk 0:00:24]}  Kg6 {[%clk 0:00:21]} 52. Ra8 {[%clk 0:00:23]}  Kg7 {[%clk 0:00:21]} 53. Ra7+ {[%clk 0:00:20]}  Kg6 {[%clk 0:00:18]} 1/2-1/2


[Site "https://www.chess.com"]